fUST/lending_fUST_20250602
["ID","MTS","AMOUNT","RATE_DAILY","PERIOD"]
[363672709,1748808643840,-494.59,0.00021369,2]
[363672711,1748808643850,-553.3,0.00021369,2]
[363672713,1748808643859,-4208.52,0.00021435,2]
[363672715,1748808643868,-823.0,0.00021448,2]
[363672717,1748808643877,-4174.62461934,0.00021486,5]
[363672719,1748808643887,-281.47260353,0.00021643,2]
[363672721,1748808643897,-445.25,0.00021643,2]
[363672722,1748808643907,-437.83,0.00021643,2]
[363672724,1748808643916,-1028.25,0.00021643,2]
[363672726,1748808643926,-741.59,0.00021643,2]
[363672728,1748808643935,-937.99,0.00021643,2]
[363672730,1748808643945,-686.87,0.00021643,2]
[363672732,1748808643955,-430.0,0.00021643,2]
[363672734,1748808643963,-924.69,0.00021643,2]
[363672736,1748808643973,-874.87,0.00021643,2]
[363672738,1748808643982,-1173.86,0.00021643,2]
[363672740,1748808643992,-553.3,0.00021643,2]
[363672741,1748808644001,-182.5752987,0.00021651,2]
[363672743,1748808644011,-4174.62461934,0.00021728,5]
[363672745,1748808644020,-5000.0,0.00021782,2]
[363672747,1748808644030,-193.30573625,0.00021874,2]
[363672749,1748808644040,-310.34,0.000219,2]
[363672751,1748808644049,-2418.22,0.000219,2]
[363672753,1748808644058,-439.22,0.000219,2]
[363672755,1748808644068,-445.25,0.00021917,2]
[363672756,1748808644078,-437.83,0.00021917,2]
[363672758,1748808644087,-1028.25,0.00021917,2]
[363672760,1748808644099,-741.59,0.00021917,2]
[363672762,1748808644111,-937.99,0.00021917,2]
[363672764,1748808644122,-686.87,0.00021917,2]
[363672766,1748808644131,-430.0,0.00021917,2]
[363672768,1748808644140,-924.69,0.00021917,2]
[363672770,1748808644151,-874.87,0.00021917,2]
[363672772,1748808644161,-1173.86,0.00021917,2]
[363672774,1748808644172,-553.3,0.00021917,2]
[363672776,1748808644182,-4174.62461934,0.00021969,6]
[363672777,1748808644193,-170.0,0.00022,2]
[363672779,1748808644203,-215.0738,0.00022055,2]
[363672790,1748808644314,-158.293892,0.00022104,2]
[363672792,1748808644325,-445.25,0.00022191,2]
[363672794,1748808644335,-437.83,0.00022191,2]
[363672796,1748808644347,-1028.25,0.00022191,2]
[363672797,1748808644356,-741.59,0.00022191,2]
[363672799,1748808644366,-937.99,0.00022191,2]
[363672801,1748808644375,-686.87,0.00022191,2]
[363672803,1748808644387,-430.0,0.00022191,2]
[363672805,1748808644397,-924.69,0.00022191,2]
[363672807,1748808644407,-874.87,0.00022191,2]
[363672809,1748808644419,-1173.86,0.00022191,2]
[363672811,1748808644429,-553.3,0.00022191,2]
[363672813,1748808644438,-170.0,0.00022192,7]
[363672815,1748808644448,-4174.62461934,0.0002221,6]
[363672817,1748808644458,-500.0,0.00022259,2]
[363672818,1748808644467,-151.0,0.00022279,7]
[363672819,1748808644476,-252.352497,0.00022279,7]
[363672820,1748808644485,-252.352497,0.00022279,7]
[363672821,1748808644495,-7498.7979491,0.00022301,2]
[363672822,1748808644504,-5000.0,0.0002233,2]
[363672823,1748808644513,-12666.87825251,0.000224,30]
[363672824,1748808644523,-4174.62461934,0.00022452,7]
[363672825,1748808644532,-445.25,0.00022465,2]
[363672826,1748808644541,-437.83,0.00022465,2]
[363672827,1748808644552,-1028.25,0.00022465,2]
[363672828,1748808644564,-741.59,0.00022465,2]
[363672829,1748808644573,-937.99,0.00022465,2]
[363672830,1748808644583,-686.87,0.00022465,2]
[363672831,1748808644592,-526.46,0.00022465,2]
[363672832,1748808644602,-924.69,0.00022465,2]
[363672833,1748808644611,-874.87,0.00022465,2]
[363672834,1748808644621,-1173.86,0.00022465,2]
[363672835,1748808644630,-553.3,0.00022465,2]
[363672836,1748808644639,-1400.44818733,0.000225,2]
[363672837,1748808644649,-160.0,0.000225,3]
[363672838,1748808644658,-4174.62461934,0.00022693,7]
[363672839,1748808644667,-151.0,0.000227,6]
[363672840,1748808644677,-182.5752987,0.00022713,2]
[363672841,1748808644686,-445.33,0.00022739,2]
[363672842,1748808644695,-438.06,0.00022739,2]
[363672843,1748808644705,-1028.44908283,0.00022739,2]
[363672844,1748808644714,-741.80591596,0.00022739,2]
[363672845,1748808644723,-938.01978705,0.00022739,2]
[363672846,1748808644732,-686.98675168,0.00022739,2]
[363672847,1748808644741,-924.7490741,0.00022739,2]
[363672848,1748808644751,-875.03494419,0.00022739,2]
[363672849,1748808644760,-1173.99725814,0.00022739,2]
[363672850,1748808644769,-553.38105305,0.00022739,2]
[363672851,1748808644778,-2109.92,0.00022931,2]
[363672852,1748808644787,-2109.92,0.00022931,2]
[363672853,1748808644797,-2109.92,0.00022931,2]
[363672854,1748808644807,-2109.92,0.00022931,2]
[363672856,1748808644817,-2109.92,0.00022931,2]
[363672857,1748808644827,-2109.92,0.00022931,2]
[363672858,1748808644837,-2109.92,0.00022931,2]
[363672860,1748808644848,-2109.92,0.00022931,2]
[363672862,1748808644858,-2109.92,0.00022931,2]
[363672863,1748808644868,-2109.92,0.00022931,2]
[363672865,1748808644877,-2109.92,0.00022931,2]
[363672867,1748808644886,-2109.92,0.00022931,2]
[363672869,1748808644896,-2109.92,0.00022931,2]
[363672871,1748808644905,-2109.92,0.00022931,2]
[363672873,1748808644915,-2109.92,0.00022931,2]
[363672875,1748808644923,-2109.92,0.00022931,2]
[363672878,1748808644933,-2109.92,0.00022931,2]
[363672881,1748808644943,-2109.92,0.00022931,2]
[363672884,1748808644952,-2109.92,0.00022931,2]
[363672886,1748808644961,-2109.92,0.00022931,2]
[363672888,1748808644971,-2109.92,0.00022931,2]
[363672890,1748808644980,-2109.92,0.00022931,2]
[363672892,1748808644990,-2109.92,0.00022931,2]
[363672894,1748808644999,-2110.02376269,0.00022931,2]
[363672896,1748808645010,-4174.62461934,0.00022934,8]
[363672898,1748808645019,-151.0,0.00022958,7]
[363672900,1748808645029,-252.352497,0.00022958,7]
[363672902,1748808645038,-252.352497,0.00022958,7]
[363672904,1748808645048,-500.42226515,0.00022973,2]
[363672906,1748808645058,-500.0,0.00022973,2]
[363672908,1748808645068,-500.0,0.00022973,2]
[363672910,1748808645077,-501.59296241,0.00022973,2]
[363672912,1748808645087,-89705.98233636,0.00023,20]
[363672914,1748808645098,-952.0,0.00023,3]
[363672916,1748808645108,-952.0,0.00023,3]
[363672918,1748808645118,-952.0,0.00023,3]
[363672920,1748808645128,-952.0,0.00023,3]
[363672922,1748808645137,-952.0,0.00023,3]
[363672924,1748808645147,-952.0,0.00023,3]
[363672927,1748808645158,-952.0,0.00023,3]
[363672929,1748808645167,-952.0,0.00023,3]
[363672931,1748808645177,-952.0,0.00023,3]
[363672933,1748808645187,-952.0,0.00023,3]
[363672935,1748808645197,-274.408038,0.00023,7]
[363672937,1748808645206,-274.408038,0.00023,7]
[363672939,1748808645216,-274.408038,0.00023,7]
[363672941,1748808645226,-274.408038,0.00023,7]
[363672943,1748808645235,-118237.77,0.00023,7]
[363672945,1748808645244,-151.0,0.00023,7]
[363672947,1748808645254,-151.0,0.00023,7]
[363672949,1748808645262,-151.0,0.00023,7]
[363672951,1748808645272,-151.0,0.00023,7]
[363672953,1748808645281,-151.0,0.00023,7]
[363672954,1748808645291,-151.0,0.00023,7]
[363672956,1748808645300,-151.0,0.00023,7]
[363672958,1748808645309,-151.0,0.00023,7]
[363672960,1748808645319,-151.0,0.00023,7]
[363672962,1748808645328,-151.0,0.00023,7]
[363672965,1748808645338,-151.0,0.00023,7]
[363672966,1748808645348,-151.0,0.00023,7]
[363672969,1748808645358,-151.0,0.00023,7]
[363672971,1748808645368,-151.0,0.00023,7]
[363672973,1748808645377,-151.0,0.00023,7]
[363672975,1748808645387,-151.0,0.00023,2]
[363672976,1748808645396,-151.0,0.00023,2]
[363672979,1748808645407,-151.0,0.00023,7]
[363672980,1748808645416,-151.0,0.00023,7]
[363672982,1748808645426,-151.0,0.00023,7]
[363672984,1748808645435,-151.0,0.00023,7]
[363672986,1748808645444,-151.0,0.00023,7]
[363672988,1748808645454,-151.0,0.00023,7]
[363672990,1748808645463,-202.441024,0.00023,7]
[363672992,1748808645473,-252.352497,0.00023,7]
[363672994,1748808645482,-252.352497,0.00023,7]
[363672997,1748808645492,-160.0,0.00023,3]
[363672998,1748808645501,-212.80060342,0.00023,3]
[363673000,1748808645511,-310.34,0.00023,7]
[363673002,1748808645520,-160.0,0.00023,3]
[363673004,1748808645530,-160.0,0.00023,3]
[363673006,1748808645539,-2418.22,0.00023,2]
[363673008,1748808645549,-439.22,0.00023,7]
[363673010,1748808645560,-1297.779594,0.00023,2]
[363673012,1748808645569,-160.0,0.00023,3]
[363673014,1748808645579,-423.51412927,0.00023,3]
[363673016,1748808645589,-229.3709046,0.00023,3]
[363673019,1748808645599,-1155.42273517,0.00023,30]
[363673021,1748808645609,-160.0,0.00023,3]
[363673022,1748808645619,-155.3651621,0.00023014,2]
[363673024,1748808645629,-170.0,0.00023014,7]
[363673026,1748808645639,-961.0,0.00023082,2]
[363673028,1748808645649,-708.0,0.00023082,2]
[363673030,1748808645659,-2228.0,0.00023082,2]
[363673033,1748808645670,-5611.36,0.00023084,2]
[363673035,1748808645680,-151.0,0.000231,7]
[363673037,1748808645689,-151.0,0.000231,7]
[363673039,1748808645699,-151.0,0.000231,7]
[363673041,1748808645708,-151.0,0.000231,7]
[363673043,1748808645718,-151.0,0.000231,7]
[363673045,1748808645728,-151.0,0.00023169,7]
[363673047,1748808645738,-4174.62461934,0.00023176,8]
[363673049,1748808645747,-151.0,0.000232,5]
[363673051,1748808645757,-151.0,0.00023204,7]
[363673054,1748808645767,-167.79859,0.00023204,7]
[363673056,1748808645778,-151.0,0.00023204,7]
[363673058,1748808645788,-151.0,0.00023204,7]
[363673060,1748808645797,-274.408038,0.000233,7]
[363673062,1748808645807,-274.408038,0.000233,7]
[363673064,1748808645816,-151.0,0.000233,7]
[363673066,1748808645826,-151.0,0.000233,7]
[363673068,1748808645836,-151.0,0.000233,7]
[363673070,1748808645846,-151.0,0.000233,7]
[363673072,1748808645855,-222.083795,0.000233,7]
[363673074,1748808645865,-151.0,0.000233,7]
[363673076,1748808645875,-151.0,0.000233,7]
[363673078,1748808645884,-151.0,0.000233,7]
[363673080,1748808645894,-151.0,0.000233,7]
[363673082,1748808645903,-151.0,0.000233,7]
[363673084,1748808645913,-252.352497,0.000233,7]
[363673086,1748808645923,-252.352497,0.000233,7]
[363673088,1748808645932,-252.352497,0.000233,7]
[363673090,1748808645942,-252.352497,0.000233,7]
[363673092,1748808645952,-151.0,0.000233,10]
[363673094,1748808645961,-158.293892,0.00023307,30]
[363673096,1748808645971,-158.293892,0.00023314,7]
[363673098,1748808645981,-4174.62461934,0.00023417,9]
[363673100,1748808645990,-223.0315306,0.00023424,2]
[363673102,1748808646000,-1152.0,0.0002344,2]
[363673104,1748808646009,-8836.6768751,0.00023474,6]
[363673124,1748808646187,-300.0,0.00015872,2]
[363673126,1748808646198,-289.79,0.00016438,2]
[363673128,1748808646207,-20138.3731249,0.00023474,6]
[363673130,1748808646217,-1338.84,0.000235,2]
[363673132,1748808646227,-151.0,0.000235,10]
[363673134,1748808646236,-151.0,0.000235,7]
[363673135,1748808646245,-1000.0,0.00023521,2]
[363673137,1748808646255,-151.0,0.00023561,7]
[363673139,1748808646264,-3695.69825899,0.00023561,2]
[363673141,1748808646274,-3575.13339709,0.00023561,2]
[363673143,1748808646284,-500.0,0.00023602,3]
[363673145,1748808646293,-1999.99,0.00023613,2]
[363673147,1748808646303,-678.85828707,0.00023659,9]
[363673158,1748808646391,-430.0,0.00016438,2]
[363673160,1748808646402,-430.0,0.00016438,2]
[363673162,1748808646412,-430.0,0.00016712,2]
[363673164,1748808646422,-430.0,0.00016712,2]
[363673166,1748808646432,-507.20587285,0.00016986,2]
[363673168,1748808646442,-430.0,0.00016986,2]
[363673170,1748808646451,-430.0,0.0001726,2]
[363673172,1748808646461,-420.0,0.00017356,2]
[363673174,1748808646470,-587.0,0.00018978,2]
[363673177,1748808646480,-2992.36,0.0002069,3]
[363673180,1748808646490,-553.0,0.00020752,2]
[363673183,1748808646499,-5984.72,0.0002206,3]
[363673185,1748808646509,-405.0,0.00022346,2]
[363673187,1748808646519,-151.0,0.000235,7]
[363673189,1748808646529,-2113.96612754,0.00023659,9]
[363673199,1748808646615,-430.0,0.00017534,2]
[363673201,1748808646626,-159.76717238,0.00023659,9]
[363673699,1748808699707,234.618472,0.00013699,2]
[363673701,1748808901647,-175.29,0.00016111,2]
[363673702,1748808939529,1254.327854,0.00015377,2]
[363673705,1748808990677,-432.0,0.00016,2]
[363673706,1748808990703,-83.08455846,0.00016099,2]
[363673707,1748808993444,-155.3670742,0.00016099,2]
[363673708,1748808997673,-61.54836734,0.00016099,2]
[363673709,1748808997695,-300.0,0.00016099,2]
[363673710,1748808997721,-51.74288309,0.000161,2]
[363673711,1748808999869,-177.74579025,0.000161,2]
[363673712,1748809005399,-226.38078674,0.000161,2]
[363673713,1748809007928,-335.09127445,0.000161,2]
[363673714,1748809009337,-236.55050028,0.000161,2]
[363673715,1748809013243,-207.70455589,0.000161,2]
[363673716,1748809014933,-277.44180626,0.000161,2]
[363673717,1748809016548,-162.77430179,0.000161,2]
[363673718,1748809024132,-231.03253923,0.000161,2]
[363673719,1748809030408,-282.52145698,0.00015939,2]
[363673720,1748809034290,-262.40209256,0.00015939,2]
[363673721,1748809039085,-153.56906213,0.00015939,2]
[363673722,1748809098771,180.49296,0.00015472,2]
[363673726,1748809492930,2347.59916131,0.0002465,120]
[363673735,1748809630090,-1348.22761106,0.00015938,2]
[363673738,1748809720385,2062.18233183,0.00015,2]
[363673739,1748809722345,23105.18724638,0.0001,2]
[363673745,1748809749450,246.526639,0.00013699,2]
[363673746,1748809766087,-1139.89524609,0.00015938,2]
[363673759,1748809832453,-2398.306848,0.00015779,2]
[363673768,1748809838157,-867.379751,0.00015779,2]
[363673770,1748809838169,-1383.20492776,0.00015779,2]
[363673783,1748809838326,-351.10847324,0.00015779,2]
[363673785,1748809838338,-300.0,0.00015999,2]
[363673787,1748809838348,-8521.01961278,0.00016,2]
[363673789,1748809838358,-8113.53556202,0.000161,2]
[363673791,1748809838367,-175.433873,0.00016174,2]
[363673792,1748809838377,-1269.50218885,0.000164,21]
[363673794,1748809838386,-7605.35100584,0.000164,2]
[363673796,1748809838396,-500.0,0.00016432,2]
[363673798,1748809838405,-500.0,0.00016432,2]
[363673799,1748809838414,-500.0,0.00016432,2]
[363673801,1748809838424,-633.88900098,0.00016432,2]
[363673803,1748809838433,-500.0,0.00016432,2]
[363673805,1748809838442,-500.0,0.00016432,2]
[363673807,1748809838452,-500.0,0.00016432,2]
[363673808,1748809838461,-500.0,0.00016432,2]
[363673810,1748809838471,-154.11104597,0.00016432,2]
[363673812,1748809838480,-500.0,0.00016432,2]
[363673814,1748809838489,-500.0,0.00016432,2]
[363673815,1748809838499,-500.0,0.00016432,2]
[363673817,1748809838508,-500.0,0.00016432,2]
[363673819,1748809838518,-488.61909652,0.00016432,2]
[363673821,1748809838529,-463.34590967,0.00016432,2]
[363673823,1748809838539,-500.0,0.00016432,2]
[363673825,1748809838548,-500.0,0.00016432,2]
[363673827,1748809838558,-500.0,0.00016432,2]
[363673828,1748809838568,-500.0,0.00016432,2]
[363673830,1748809838578,-500.0,0.00016432,2]
[363673832,1748809838587,-428.30082175,0.00016432,2]
[363673834,1748809838597,-500.0,0.00016432,2]
[363673836,1748809838607,-543.35777514,0.00016432,2]
[363673838,1748809838617,-500.0,0.00016432,2]
[363673840,1748809838627,-500.0,0.00016432,2]
[363673841,1748809838636,-500.0,0.00016432,2]
[363673843,1748809838646,-500.0,0.00016432,2]
[363673845,1748809838656,-500.0,0.00016432,2]
[363673847,1748809838666,-500.0,0.00016432,2]
[363673849,1748809838675,-500.0,0.00016432,2]
[363673851,1748809838685,-338.10023068,0.00016432,2]
[363673853,1748809838694,-500.0,0.00016432,2]
[363673854,1748809838703,-500.0,0.00016432,2]
[363673856,1748809838712,-500.0,0.00016432,2]
[363673858,1748809838722,-500.0,0.00016432,2]
[363673860,1748809838733,-593.70668826,0.00016432,2]
[363673862,1748809838743,-500.0,0.00016432,2]
[363673863,1748809838752,-500.0,0.00016432,2]
[363673865,1748809838761,-500.0,0.00016432,2]
[363673867,1748809838771,-500.0,0.00016432,2]
[363673869,1748809838781,-500.0,0.00016432,2]
[363673871,1748809838790,-500.0,0.00016432,2]
[363673873,1748809838799,-500.0,0.00016432,2]
[363673875,1748809838809,-500.0,0.00016432,2]
[363673877,1748809838822,-500.0,0.00016432,2]
[363673879,1748809838832,-500.0,0.00016432,2]
[363673881,1748809838842,-500.0,0.00016432,2]
[363673882,1748809838851,-500.0,0.00016432,2]
[363673884,1748809838861,-500.0,0.00016432,2]
[363673886,1748809838871,-500.0,0.00016432,2]
[363673888,1748809838880,-500.0,0.00016432,2]
[363673890,1748809838890,-500.0,0.00016432,2]
[363673892,1748809838899,-500.0,0.00016432,2]
[363673894,1748809838909,-500.0,0.00016432,2]
[363673895,1748809838919,-500.0,0.00016432,2]
[363673897,1748809838928,-50000.0,0.00016433,2]
[363673899,1748809838937,-500.0,0.00016437,2]
[363673901,1748809838947,-430.0,0.00016438,2]
[363673903,1748809838956,-402.5042734,0.00016438,2]
[363673905,1748809838965,-430.0,0.00016438,2]
[363673906,1748809838974,-430.0,0.00016438,2]
[363673908,1748809838984,-430.0,0.00016438,2]
[363673910,1748809838993,-430.0,0.00016438,2]
[363673912,1748809839003,-430.0,0.00016438,2]
[363673914,1748809839012,-430.0,0.00016438,2]
[363673916,1748809839021,-430.0,0.00016438,2]
[363673918,1748809839030,-430.0,0.00016438,2]
[363673919,1748809839039,-430.0,0.00016438,2]
[363673921,1748809839049,-430.0,0.00016438,2]
[363673923,1748809839059,-430.0,0.00016438,2]
[363673925,1748809839070,-430.0,0.00016438,2]
[363673927,1748809839079,-370.45,0.00016438,2]
[363673929,1748809839089,-430.0,0.00016438,2]
[363673931,1748809839098,-430.0,0.00016438,2]
[363673933,1748809839107,-430.0,0.00016438,2]
[363673934,1748809839117,-430.0,0.00016438,2]
[363673936,1748809839126,-430.0,0.00016438,2]
[363673938,1748809839136,-430.0,0.00016438,2]
[363673940,1748809839146,-430.0,0.00016438,2]
[363673942,1748809839155,-430.0,0.00016438,2]
[363673944,1748809839165,-636.16,0.00016438,2]
[363673957,1748809839300,-430.0,0.00016438,2]
[363673959,1748809839311,-430.0,0.00016438,2]
[363673961,1748809839321,-430.0,0.00016438,2]
[363673963,1748809839330,-430.0,0.00016438,2]
[363673964,1748809839341,-430.0,0.00016438,2]
[363673966,1748809839351,-375.68,0.00016438,2]
[363673968,1748809839361,-430.0,0.00016438,2]
[363673970,1748809839372,-430.0,0.00016438,2]
[363673972,1748809839381,-494.59,0.00016438,2]
[363673973,1748809839390,-430.0,0.00016438,2]
[363673975,1748809839400,-430.0,0.00016438,2]
[363673977,1748809839410,-430.0,0.00016438,2]
[363673979,1748809839420,-430.0,0.00016438,2]
[363673981,1748809839430,-430.0,0.00016438,2]
[363673983,1748809839440,-430.0,0.00016438,2]
[363673985,1748809839450,-430.0,0.00016438,2]
[363673987,1748809839460,-430.0,0.00016438,2]
[363673988,1748809839471,-430.0,0.00016438,2]
[363673990,1748809839480,-264.55523875,0.00016438,2]
[363673992,1748809839491,-430.0,0.00016438,2]
[363673994,1748809839500,-430.0,0.00016438,2]
[363673996,1748809839509,-430.0,0.00016438,2]
[363673998,1748809839519,-339.82707495,0.00016438,2]
[363674000,1748809839529,-430.0,0.00016438,2]
[363674002,1748809839539,-500.0,0.00016438,2]
[363674003,1748809839549,-500.65669281,0.00016438,2]
[363674005,1748809839558,-454.18,0.00016438,2]
[363674007,1748809839568,-430.0,0.00016438,2]
[363674009,1748809839578,-188.26273572,0.00016438,2]
[363674011,1748809839588,-430.0,0.00016438,2]
[363674013,1748809839598,-430.0,0.00016438,2]
[363674015,1748809839608,-430.0,0.00016438,2]
[363674016,1748809839617,-430.0,0.00016438,2]
[363674018,1748809839626,-641.27,0.00016438,2]
[363674020,1748809839636,-376.03657869,0.00016438,2]
[363674022,1748809839645,-430.0,0.00016438,2]
[363674024,1748809839655,-430.0,0.00016438,2]
[363674026,1748809839664,-434.69,0.00016438,2]
[363674027,1748809839674,-430.0,0.00016438,2]
[363674029,1748809839684,-457.41,0.00016438,2]
[363674031,1748809839694,-430.0,0.00016438,2]
[363674033,1748809839704,-430.0,0.00016438,2]
[363674035,1748809839714,-430.0,0.00016438,2]
[363674037,1748809839724,-277.44258147,0.00016712,2]
[363674039,1748809839734,-430.0,0.00016712,2]
[363674040,1748809839743,-430.0,0.00016712,2]
[363674042,1748809839753,-430.0,0.00016712,2]
[363674044,1748809839763,-430.0,0.00016712,2]
[363674046,1748809839772,-430.0,0.00016712,2]
[363674048,1748809839782,-203.3,0.00016712,2]
[363674050,1748809839791,-430.0,0.00016712,2]
[363674052,1748809839801,-171.89753536,0.00016712,2]
[363674054,1748809839810,-430.0,0.00016712,2]
[363674055,1748809839820,-430.0,0.00016712,2]
[363674057,1748809839829,-430.0,0.00016712,2]
[363674059,1748809839838,-430.0,0.00016712,2]
[363674061,1748809839847,-430.0,0.00016712,2]
[363674063,1748809839857,-430.0,0.00016712,2]
[363674065,1748809839867,-430.0,0.00016712,2]
[363674067,1748809839876,-430.0,0.00016712,2]
[363674068,1748809839886,-636.16,0.00016712,2]
[363674071,1748809839896,-179.31422225,0.00016712,2]
[363674073,1748809839905,-208.74,0.00016712,2]
[363674075,1748809839914,-430.0,0.00016712,2]
[363674077,1748809839924,-244.96,0.00016712,2]
[363674079,1748809839933,-430.0,0.00016712,2]
[363674080,1748809839942,-430.0,0.00016712,2]
[363674082,1748809839954,-430.0,0.00016712,2]
[363674084,1748809839967,-477.87,0.00016712,2]
[363674086,1748809839976,-430.0,0.00016712,2]
[363674088,1748809839986,-430.0,0.00016712,2]
[363674090,1748809839995,-430.0,0.00016712,2]
[363674092,1748809840004,-430.0,0.00016712,2]
[363674094,1748809840014,-430.0,0.00016712,2]
[363674096,1748809840023,-430.0,0.00016712,2]
[363674098,1748809840033,-430.0,0.00016712,2]
[363674099,1748809840043,-430.0,0.00016712,2]
[363674101,1748809840052,-495.33864648,0.00016712,2]
[363674103,1748809840062,-430.0,0.00016712,2]
[363674105,1748809840071,-430.0,0.00016712,2]
[363674107,1748809840081,-454.18,0.00016712,2]
[363674109,1748809840090,-430.0,0.00016712,2]
[363674111,1748809840100,-430.0,0.00016712,2]
[363674113,1748809840110,-430.0,0.00016712,2]
[363674114,1748809840119,-430.0,0.00016712,2]
[363674116,1748809840128,-641.27,0.00016712,2]
[363674118,1748809840138,-518.79,0.00016712,2]
[363674120,1748809840147,-430.0,0.00016712,2]
[363674122,1748809840157,-430.0,0.00016712,2]
[363674124,1748809840167,-434.69,0.00016712,2]
[363674126,1748809840176,-430.0,0.00016712,2]
[363674127,1748809840186,-457.41,0.00016712,2]
[363674129,1748809840196,-430.0,0.00016712,2]
[363674131,1748809840205,-430.0,0.00016712,2]
[363674133,1748809840214,-430.0,0.00016712,2]
[363674135,1748809840224,-208.7312311,0.000169,2]
[363674137,1748809840233,-565.48,0.00016966,3]
[363674139,1748809840242,-282.74,0.00016966,3]
[363674141,1748809840251,-848.22,0.00016966,3]
[363674143,1748809840264,-2261.91,0.00016976,3]
[363674145,1748809840273,-1130.96,0.00016976,3]
[363674147,1748809840282,-430.0,0.00016986,2]
[363674148,1748809840292,-430.0,0.00016986,2]
[363674150,1748809840302,-430.0,0.00016986,2]
[363674152,1748809840311,-430.0,0.00016986,2]
[363674154,1748809840321,-430.0,0.00016986,2]
[363674156,1748809840330,-430.0,0.00016986,2]
[363674158,1748809840341,-430.0,0.00016986,2]
[363674160,1748809840350,-430.0,0.00016986,2]
[363674162,1748809840360,-430.0,0.00016986,2]
[363674164,1748809840369,-430.0,0.00016986,2]
[363674165,1748809840379,-636.16,0.00016986,2]
[363674167,1748809840389,-430.0,0.00016986,2]
[363674169,1748809840398,-430.0,0.00016986,2]
[363674172,1748809840407,-430.0,0.00016986,2]
[363674174,1748809840417,-430.0,0.00016986,2]
[363674176,1748809840427,-430.0,0.00016986,2]
[363674178,1748809840436,-430.0,0.00016986,2]
[363674179,1748809840446,-430.0,0.00016986,2]
[363674181,1748809840455,-430.0,0.00016986,2]
[363674183,1748809840465,-430.0,0.00016986,2]
[363674185,1748809840474,-407.94,0.00016986,2]
[363674187,1748809840483,-430.0,0.00016986,2]
[363674189,1748809840494,-430.0,0.00016986,2]
[363674191,1748809840503,-522.22,0.00016986,2]
[363674193,1748809840513,-430.0,0.00016986,2]
[363674195,1748809840523,-454.18,0.00016986,2]
[363674196,1748809840532,-430.0,0.00016986,2]
[363674198,1748809840541,-430.0,0.00016986,2]
[363674200,1748809840551,-430.0,0.00016986,2]
[363674202,1748809840561,-641.27,0.00016986,2]
[363674203,1748809840570,-343.23,0.00016986,2]
[363674204,1748809840579,-430.0,0.00016986,2]
[363674205,1748809840589,-434.69,0.00016986,2]
[363674206,1748809840598,-430.0,0.00016986,2]
[363674207,1748809840607,-457.41,0.00016986,2]
[363674208,1748809840615,-430.0,0.00016986,2]
[363674209,1748809840624,-454.4,0.00016986,2]